fUSD/lending_fUSD_20260213
["ID","MTS","AMOUNT","RATE_DAILY","PERIOD"]
[405305894,1770972649362,-205.76325723,0.00020275,2]
[405305895,1770972649371,-152.97,0.000203,7]
[405305896,1770972649381,-176.29,0.00020319,2]
[405305897,1770972649391,-3488.0,0.00020468,2]
[405305898,1770972649399,-1288.0,0.00020468,2]
[405305899,1770972649409,-617.0,0.00020468,2]
[405305900,1770972649419,-1208.0,0.00020468,2]
[405305901,1770972649429,-918.0,0.00020468,2]
[405305902,1770972649439,-1274.0,0.00020468,2]
[405305903,1770972649448,-150.0,0.00020468,2]
[405305904,1770972649458,-5968.0,0.00020468,2]
[405305905,1770972649467,-6593.0,0.00020468,2]
[405305906,1770972649476,-200.0,0.00020494,2]
[405305907,1770972649486,-160.10510946,0.00020515,2]
[405305908,1770972649496,-151.0,0.00020548,2]
[405305909,1770972649505,-500.0,0.00020603,2]
[405305910,1770972649514,-257.55811756,0.00020603,2]
[405305911,1770972649524,-200.0,0.00020699,2]
[405305912,1770972649533,-550.0,0.00020822,2]
[405305913,1770972649542,-450.0,0.00020822,2]
[405305914,1770972649552,-200.0,0.00020906,2]
[405305915,1770972649561,-400.0,0.00021,2]
[405305916,1770972649570,-500.0,0.00021014,2]
[405305917,1770972649580,-12546.97,0.00021068,2]
[405305918,1770972649589,-200.0,0.00021115,2]
[405305919,1770972649599,-200.0,0.00021326,2]
[405305920,1770972649608,-503.0,0.00021346,4]
[405305921,1770972649617,-6394.1,0.0002137,2]
[405305922,1770972649628,-203.02698614,0.0002137,2]
[405305923,1770972649637,-550.0,0.0002137,2]
[405305924,1770972649646,-214.56,0.00021622,2]
[405305925,1770972649656,-204.72,0.00021857,2]
[405305926,1770972649665,-151.0,0.00021915,2]
[405305927,1770972649675,-2000.0,0.00021917,2]
[405305928,1770972649684,-5000.0,0.00021918,2]
[405305929,1770972649697,-552.06741177,0.00021918,2]
[405305930,1770972649706,-500.0,0.00021918,2]
[405305931,1770972649716,-500.0,0.00021918,2]
[405305932,1770972649726,-500.0,0.00021918,2]
[405305933,1770972649736,-500.0,0.00021918,2]
[405305934,1770972649746,-500.0,0.00021973,2]
[405305935,1770972649755,-2421.331562,0.00022,2]
[405305936,1770972649766,-1048.59,0.00022,7]
[405305937,1770972649776,-41943.48,0.00022,2]
[405305938,1770972649786,-337.84879333,0.00022,120]
[405305939,1770972649796,-480.01587484,0.00022,120]
[405305940,1770972649805,-500.0,0.00022028,2]
[405305941,1770972649815,-500.0,0.00022082,2]
[405305942,1770972649825,-500.0,0.00022137,2]
[405305943,1770972649834,-214.56,0.00022175,2]
[405305944,1770972649843,-500.0,0.00022192,2]
[405305945,1770972649853,-500.0,0.00022247,2]
[405305946,1770972649863,-500.0,0.00022302,2]
[405305947,1770972649872,-390.83009148,0.00022356,2]
[405305948,1770972649882,-160.10510946,0.00022567,2]
[405305949,1770972649891,-4641.19638585,0.00022586,2]
[405305950,1770972649901,-199.17,0.00022603,2]
[405305951,1770972649911,-214.56,0.00022728,2]
[405305952,1770972649921,-458.92,0.000229,14]
[405305953,1770972649930,-450.0,0.00023,2]
[405305954,1770972649940,-160.0,0.00023,2]
[405305955,1770972649949,-3488.0,0.00023468,2]
[405305956,1770972649959,-1288.0,0.00023468,2]
[405305957,1770972649970,-617.0,0.00023468,2]
[405305958,1770972649979,-1208.0,0.00023468,2]
[405305959,1770972649989,-918.0,0.00023468,2]
[405305960,1770972649998,-1274.0,0.00023468,2]
[405305961,1770972650008,-150.0,0.00023468,2]
[405305962,1770972650018,-5968.0,0.00023468,2]
[405305963,1770972650027,-6593.0,0.00023468,2]
[405305964,1770972650037,-41943.48,0.000235,2]
[405305965,1770972650047,-503.0,0.00023692,6]
[405305966,1770972650056,-160.0,0.00024,7]
[405305967,1770972650066,-1000.0,0.00024187,7]
[405305968,1770972650075,-160.10510947,0.00024618,2]
[405305969,1770972650085,-2000.0,0.00024657,12]
[405305970,1770972650096,-150.0,0.00024658,2]
[405305971,1770972650106,-500.0,0.00025,2]
[405305972,1770972650115,-150.0,0.00025,17]
[405305973,1770972650124,-16207.11693928,0.000254,2]
[405305974,1770972650134,-2084.68526998,0.000254,2]
[405305975,1770972650143,-199.17,0.00025548,2]
[405305976,1770972650152,-150.0,0.0002589,2]
[405305977,1770972650162,-150.0,0.00026,20]
[405305978,1770972650171,-503.0,0.00026038,8]
[405305979,1770972650180,-712.65,0.00026311,2]
[405305980,1770972650189,-41943.48,0.000264,2]
[405305981,1770972650198,-3488.0,0.00026468,2]
[405305982,1770972650208,-1288.0,0.00026468,2]
[405305983,1770972650218,-617.0,0.00026468,2]
[405305984,1770972650227,-1208.0,0.00026468,2]
[405305985,1770972650236,-918.0,0.00026468,2]
[405305986,1770972650246,-1274.0,0.00026468,2]
[405305987,1770972650255,-5180.775,0.00026468,2]
[405305988,1770972650264,-6593.0,0.00026468,2]
[405305989,1770972650274,-783.27192446,0.00026583,2]
[405305990,1770972650283,-600.499113,0.00026821,120]
[405305991,1770972650292,-150.0,0.00026822,2]
[405305992,1770972650302,-550.0,0.00027,2]
[405305993,1770972650311,-150.0,0.00027,23]
[405305994,1770972650321,-3692.55,0.00027123,2]
[405305995,1770972650331,-150.0,0.00027185,2]
[405305996,1770972650340,-150.0,0.00027369,2]
[405305997,1770972650349,-193.48181631,0.0002737,2]
[405305998,1770972650360,-160.48734455,0.00027397,2]
[405305999,1770972650372,-2006.79775427,0.00027397,22]
[405306000,1770972650385,-500.0,0.00027397,120]
[405306001,1770972650398,-1177.42,0.00027397,30]
[405306002,1770972650410,-500.0,0.00027397,20]
[405306003,1770972650421,-150.0,0.00027397,5]
[405306004,1770972650432,-211.64486085,0.00027397,4]
[405306005,1770972650444,-500.0,0.00027415,2]
[405306006,1770972650459,-1048.59,0.000275,7]
[405306007,1770972650471,-1477.84,0.00027513,2]
[405306008,1770972650482,-500.0,0.00027589,2]
[405306009,1770972650494,-4641.19638585,0.00027914,2]
[405306010,1770972650507,-250.0,0.00027945,5]
[405306011,1770972650519,-150.0,0.00028,26]
[405306012,1770972650530,-41943.48,0.00028,2]
[405306013,1770972650542,-503.0,0.00028385,10]
[405306014,1770972650553,-199.17,0.00028493,2]
[405306015,1770972650564,-353.14332951,0.00028493,5]
[405306016,1770972650575,-150.0,0.00028544,2]
[405306017,1770972650588,-382.43,0.000286,14]
[405306018,1770972650600,-600.0,0.00029,2]
[405306019,1770972650611,-150.0,0.00029,29]
[405306020,1770972650624,-500.0,0.00029233,2]
[405306021,1770972650636,-3488.0,0.00029468,2]
[405306022,1770972650647,-1288.0,0.00029468,2]
[405306023,1770972650659,-1208.0,0.00029468,2]
[405306024,1770972650671,-918.0,0.00029468,2]
[405306025,1770972650683,-1274.0,0.00029468,2]
[405306026,1770972650698,-6593.0,0.00029468,2]
[405306027,1770972650709,-42929.0,0.000299,2]
[405306028,1770972650721,-150.0,0.00029971,2]
[405306029,1770972650734,-150.0,0.0003,2]
[405306030,1770972650746,-157.0,0.0003,32]
[405306031,1770972650758,-151.66407962,0.0003,30]
[405306032,1770972650771,-152.64,0.0003,2]
[405306033,1770972650783,-152.64,0.0003,2]
[405306034,1770972650794,-152.64,0.0003,2]
[405306035,1770972650805,-152.64,0.0003,2]
[405306036,1770972650817,-152.64,0.0003,2]
[405306037,1770972650829,-152.64,0.0003,2]
[405306038,1770972650842,-152.64,0.0003,2]
[405306039,1770972650855,-152.64,0.0003,2]
[405306040,1770972650867,-152.64,0.0003,2]
[405306041,1770972650878,-152.64,0.0003,2]
[405306042,1770972650889,-152.64,0.0003,2]
[405306043,1770972650901,-152.64,0.0003,2]
[405306044,1770972650912,-152.64,0.0003,2]
[405306045,1770972650923,-152.64,0.0003,2]
[405306046,1770972650934,-152.64,0.0003,2]
[405306047,1770972650945,-500.0,0.00030137,120]
[405306048,1770972650957,-41943.48,0.000302,2]
[405306049,1770972650971,-184.33,0.00030212,2]
[405306050,1770972650983,-1000.0,0.00030462,7]
[405306051,1770972650994,-5531.0,0.000305,3]
[405306052,1770972651005,-503.0,0.00030731,13]
[405306053,1770972651015,-1000.0,0.00030736,7]
[405306054,1770972651026,-650.0,0.00031,2]
[405306055,1770972651037,-1000.0,0.0003101,7]
[405306056,1770972651050,-1177.42,0.0003105,30]
[405306057,1770972651062,-5531.0,0.000311,5]
[405306058,1770972651075,-3354.50490408,0.00031173,2]
[405306059,1770972651086,-300.131648,0.00031268,51]
[405306060,1770972651096,-1000.0,0.00031284,7]
[405306061,1770972651108,-302.0,0.000314,2]
[405306062,1770972651118,-41943.48,0.000314,2]
[405306063,1770972651129,-308.0,0.000314,2]
[405306064,1770972651140,-152.0,0.00031423,3]
[405306065,1770972651151,-150.0,0.0003147,2]
[405306066,1770972651163,-180.11038915,0.00031936,8]
[405306067,1770972651174,-3488.0,0.00032468,2]
[405306068,1770972651185,-1288.0,0.00032468,2]
[405306069,1770972651197,-1208.0,0.00032468,2]
[405306070,1770972651208,-918.0,0.00032468,2]
[405306071,1770972651220,-1274.0,0.00032468,2]
[405306072,1770972651231,-6593.0,0.00032468,2]
[405306073,1770972651242,-1626.866,0.00032638,33]
[405306074,1770972651253,-193.48181631,0.00032849,30]
[405306075,1770972651264,-152.0,0.00032864,4]
[405306076,1770972651275,-516.95013076,0.00032876,30]
[405306077,1770972651286,-500.0,0.00032877,120]
[405306078,1770972651298,-300.0,0.00032877,5]
[405306079,1770972651310,-500.0,0.00032877,2]
[405306080,1770972651321,-500.0,0.00032877,2]
[405306081,1770972651331,-500.0,0.00032877,2]
[405306082,1770972651343,-500.0,0.00032877,2]
[405306083,1770972651355,-500.0,0.00032877,2]
[405306084,1770972651366,-365.85048482,0.00032877,2]
[405306085,1770972651377,-639.29,0.000329,14]
[405306086,1770972651387,-1070.01,0.000329,2]
[405306087,1770972651398,-1572.86,0.000329,14]
[405306088,1770972651409,-700.0,0.00033,2]
[405306089,1770972651420,-1048.59,0.00033,14]
[405306090,1770972651430,-542.595972,0.00033,8]
[405306091,1770972651441,-589.5,0.0003302,30]
[405306092,1770972651452,-728.0,0.0003302,30]
[405306093,1770972651462,-150.0,0.00033043,2]
[405306094,1770972651473,-503.0,0.00033077,15]
[405306095,1770972651485,-4641.19638585,0.00033243,2]
[405306096,1770972651496,-41943.48,0.000333,2]
[405306097,1770972651507,-9923.0,0.0003348,5]
[405306098,1770972651518,-601.10661111,0.00033699,5]
[405306099,1770972651529,-1000.0,0.00034299,2]
[405306100,1770972651539,-1000.0,0.00034299,2]
[405306101,1770972651550,-1000.0,0.00034299,2]
[405306102,1770972651561,-1000.0,0.00034299,2]
[405306103,1770972651572,-1000.0,0.00034299,2]
[405306104,1770972651582,-152.0,0.00034306,5]
[405306105,1770972651593,-150.0,0.00034696,2]
[405306106,1770972651605,-1177.42,0.00034703,30]
[405306107,1770972651616,-1500.0,0.00034795,2]
[405306108,1770972651626,-750.0,0.00035,2]
[405306109,1770972651637,-1070.01,0.00035,2]
[405306110,1770972651648,-1572.86,0.00035,14]
[405306111,1770972651659,-200062.73715813,0.00035,120]
[405306112,1770972651671,-639.29,0.000353,14]
[405306113,1770972651682,-503.0,0.00035423,17]
[405306114,1770972651694,-3488.0,0.00035468,2]
[405306115,1770972651709,-1288.0,0.00035468,2]
[405306116,1770972651719,-918.0,0.00035468,2]
[405306117,1770972651730,-6593.0,0.00035468,2]
[405306118,1770972651742,-259.7041,0.00035582,2]
[405306119,1770972651753,-179.04905926,0.00035589,120]
[405306120,1770972651763,-41943.48,0.000356,2]
[405306121,1770972651775,-500.0,0.00035616,120]
[405306122,1770972651785,-2385.0,0.00035616,120]
[405306123,1770972651797,-2367.0,0.00035616,120]
[405306124,1770972651808,-2478.0,0.00035616,120]
[405306125,1770972651820,-7682.707853,0.00035682,2]
[405306126,1770972651831,-19224.8324837,0.00035682,2]
[405306127,1770972651841,-152.0,0.00035748,6]
[405306128,1770972651853,-2000.0,0.000359,2]
[405306129,1770972651864,-518.4,0.00036,30]
[405306130,1770972651875,-1070.01,0.000362,2]
[405306131,1770972651885,-1572.86,0.000362,14]
[405306132,1770972651896,-150.0,0.0003643,2]
[405306133,1770972651907,-518.4,0.0003672,30]
[405306134,1770972651919,-171.0,0.000369,120]
[405306135,1770972651931,-150.76,0.00036957,10]
[405306136,1770972651941,-1000.0,0.00037094,7]
[405306137,1770972651952,-152.0,0.00037189,7]
[405306138,1770972651963,-188.38143115,0.000372,120]
[405306139,1770972651974,-188.38143114,0.00037379,120]
[405306140,1770972651985,-500.0,0.00037479,2]
[405306141,1770972651995,-503.0,0.00037769,19]
[405306142,1770972652006,-150.0,0.00038252,2]
[405306143,1770972652017,-1999.0,0.00038356,120]
[405306144,1770972652028,-1177.42,0.00038356,30]
[405306145,1770972652039,-500.0,0.00038356,120]
[405306146,1770972652050,-1048.59,0.000384,14]
[405306147,1770972652061,-639.29,0.000384,14]
[405306148,1770972652073,-3488.0,0.00038468,2]
[405306149,1770972652083,-1288.0,0.00038468,2]
[405306150,1770972652095,-918.0,0.00038468,2]
[405306151,1770972652105,-5149.904,0.00038468,2]
[405306152,1770972652116,-4641.19638585,0.00038571,2]
[405306153,1770972652127,-152.0,0.00038631,8]
[405306154,1770972652138,-500.0,0.000387,120]
[405306155,1770972652149,-1070.01,0.000387,30]
[405306156,1770972652159,-1572.86,0.000387,14]
[405306157,1770972652171,-171.0,0.00038745,120]
[405306158,1770972652182,-1999.0,0.00039178,120]
[405306159,1770972652192,-7682.707853,0.00039485,2]
[405306160,1770972652203,-2000.0,0.000396,2]
[405306161,1770972652214,-77777.82706922,0.00039781,7]
[405306162,1770972652225,-19224.8324837,0.00039824,2]
[405306163,1770972652236,-1558.68796301,0.00039882,2]
[405306164,1770972652246,-371.94213864,0.00039882,2]
[405306165,1770972652257,-301.02860324,0.00039882,2]
[405306166,1770972652268,-300.0,0.00039882,2]
[405306167,1770972652279,-300.52729027,0.00039882,2]
[405306168,1770972652290,-300.0,0.00039882,2]
[405306169,1770972652301,-300.0,0.00039882,2]
[405306170,1770972652311,-300.0,0.00039882,2]
[405306171,1770972652322,-300.0,0.00039882,2]
[405306172,1770972652333,-301.20809281,0.00039882,2]
[405306173,1770972652344,-576.15633388,0.00039882,2]
[405306174,1770972652356,-1558.68796301,0.00039882,2]
[405306175,1770972652366,-300.70116688,0.00039882,2]
[405306176,1770972652377,-300.81091155,0.00039882,2]
[405306177,1770972652388,-300.0,0.00039882,2]
[405306178,1770972652399,-300.51467445,0.00039882,2]
[405306179,1770972652410,-594.67,0.0004,120]
[405306180,1770972652420,-315.03,0.0004,120]
[405306181,1770972652431,-206.72,0.0004,120]
[405306182,1770972652442,-291.54305096,0.0004,45]
[405306183,1770972652453,-151.0,0.0004,120]
[405306184,1770972652463,-151.0,0.0004,120]
[405306185,1770972652475,-365.93929912,0.0004,15]
[405306186,1770972652485,-160.0,0.0004,3]
[405306187,1770972652496,-160.0,0.0004,120]
[405306188,1770972652507,-1999.0,0.0004,120]
[405306189,1770972652519,-41943.48,0.0004,2]
[405306190,1770972652530,-152.0,0.00040072,9]
[405306191,1770972652785,-503.0,0.00040115,22]
[405306192,1770972652801,-150.0,0.00040165,2]
[405306193,1770972652825,-10244.39673273,0.000407,117]
[405306194,1770972652837,-1498.0641666,0.0004074,2]
[405306195,1770972652847,-152.56791948,0.00040774,7]
[405306196,1770972652857,-164.653644,0.00040774,7]
[405306197,1770972652866,-151.0,0.000408,120]
[405306198,1770972652876,-1572.86,0.000408,14]
[405306199,1770972652885,-1999.0,0.00040821,120]
[405306200,1770972652894,-639.29,0.000409,14]
[405306201,1770972652903,-878.1502,0.000409,2]
[405306202,1770972652913,-32832.125,0.000409,2]
[405306203,1770972652923,-1000.0,0.000409,2]
[405306204,1770972652934,-151.0,0.000409,120]
[405306205,1770972652943,-250.0,0.00040917,35]
[405306206,1770972652953,-250.0,0.00040917,35]
[405306207,1770972652963,-251.0,0.00040917,35]
[405306208,1770972652972,-250.0,0.00040999,35]
[405306209,1770972652982,-201.0,0.00040999,35]
[405306210,1770972652991,-117646.35031771,0.00041,120]
[405306211,1770972653000,-967.68256866,0.00041,120]
[405306212,1770972653010,-600.5276648,0.00041,30]
[405306213,1770972653019,-300.0,0.00041,120]
[405306214,1770972653030,-200.0,0.00041,7]
[405306215,1770972653040,-153.0,0.00041,60]
[405306216,1770972653050,-153.0,0.00041,60]
[405306217,1770972653060,-153.0,0.00041,60]
[405306218,1770972653071,-153.0,0.00041,60]
[405306219,1770972653082,-153.0,0.00041,60]
[405306220,1770972653092,-153.0,0.00041,60]
[405306221,1770972653102,-153.0,0.00041,60]
[405306222,1770972653111,-253.56791203,0.00041,60]
[405306223,1770972653121,-1138.60702209,0.00041,120]
[405306224,1770972653131,-300.0,0.00041,120]
[405306225,1770972653140,-978.15807133,0.00041068,120]
[405306226,1770972653151,-451.45757138,0.00041068,120]
[405306227,1770972653160,-300.0,0.00041068,22]
[405306228,1770972653169,-300.0,0.00041081,35]
[405306229,1770972653179,-518.48802897,0.00041096,120]
[405306230,1770972653189,-839.0,0.00041096,120]
[405306231,1770972653198,-20244.32,0.00041096,120]
[405306232,1770972653207,-350.0,0.00041143,4]
[405306233,1770972653217,-160.0,0.000412,7]
[405306234,1770972653228,-160.0,0.000412,7]
[405306235,1770972653238,-160.0,0.000412,120]
[405306236,1770972653248,-152.0,0.00041202,20]
[405306237,1770972653258,-158.643,0.00041234,60]
[405306238,1770972653267,-1048.59,0.000413,14]
[405306239,1770972653277,-200.0,0.0004141,7]
[405306240,1770972653286,-1068.75491679,0.00041414,120]
[405306241,1770972653296,-3488.0,0.00041468,2]
[405306242,1770972653305,-1288.0,0.00041468,2]
[405306243,1770972653315,-918.0,0.00041468,2]
[405306244,1770972653324,-152.13,0.00041476,120]
[405306245,1770972653334,-152.0,0.00041514,10]
[405306246,1770972653344,-152.13,0.00041576,120]
[405306247,1770972653353,-2000.0,0.000416,7]
[405306248,1770972653363,-1999.0,0.00041643,120]
[405306249,1770972653372,-839.0,0.00041644,120]
[405306250,1770972653381,-152.13,0.00041676,120]
[405306251,1770972653390,-151.0,0.000417,120]
[405306252,1770972653400,-1572.86,0.000417,14]
[405306253,1770972653410,-152.13,0.00041776,120]
[405306254,1770972653419,-639.29,0.000418,14]
[405306255,1770972653429,-350.0,0.00041809,6]
[405306256,1770972653438,-200.0,0.00041824,7]
[405306257,1770972653448,-152.0,0.00041826,21]
[405306258,1770972653457,-152.13,0.00041876,120]
[405306259,1770972653466,-151.0,0.000419,120]
[405306260,1770972653476,-152.13,0.00041976,120]
[405306261,1770972653486,-599.999999,0.00042,2]
[405306262,1770972653495,-1713.81995086,0.00042,120]
[405306263,1770972653505,-20427.32705973,0.00042,120]
[405306264,1770972653514,-1329.24941726,0.00042,30]
[405306265,1770972653524,-300.0,0.00042,120]
[405306266,1770972653534,-503.92174178,0.00042,30]
[405306267,1770972653543,-1177.42,0.00042009,120]
[405306268,1770972653553,-152.13,0.00042076,120]
[405306269,1770972653563,-350.0,0.00042119,7]
[405306270,1770972653574,-150.0,0.00042173,120]
[405306271,1770972653583,-152.13,0.00042176,120]
[405306272,1770972653593,-839.0,0.00042192,120]
[405306273,1770972653603,-200.0,0.00042242,7]
[405306274,1770972653613,-152.13,0.00042276,120]
[405306275,1770972653624,-915.40895618,0.00042339,120]
[405306276,1770972653634,-152.13,0.00042376,120]
[405306277,1770972653643,-1048.59,0.000424,14]
[405306278,1770972653653,-160.0,0.000424,120]
[405306279,1770972653662,-659.06,0.00042438,120]
[405306280,1770972653672,-152.0,0.00042449,22]
[405306281,1770972653682,-503.0,0.00042462,24]
[405306282,1770972653693,-1999.0,0.00042465,120]
[405306283,1770972653705,-152.13,0.00042476,120]
[405306284,1770972653715,-151.0,0.000425,120]
[405306285,1770972653725,-659.06,0.00042575,120]
[405306286,1770972653737,-152.13,0.00042576,120]
[405306287,1770972653747,-500.0,0.0004259,60]
[405306288,1770972653757,-500.0,0.0004259,60]
[405306289,1770972653768,-500.0,0.0004259,60]
[405306290,1770972653778,-1572.86,0.000426,14]
[405306291,1770972653787,-200.0,0.00042665,7]
[405306292,1770972653797,-152.13,0.00042676,120]
[405306293,1770972653807,-639.29,0.000427,14]
[405306294,1770972653816,-1070.01,0.000427,30]
[405306295,1770972653825,-659.06,0.00042712,120]
[405306296,1770972653834,-839.0,0.0004274,120]
[405306297,1770972653844,-4000.0,0.0004274,14]
[405306298,1770972653854,-200.0,0.00042747,120]
[405306299,1770972653863,-152.13,0.00042776,120]
[405306300,1770972653874,-151.0,0.000428,120]
[405306301,1770972653884,-10317.95139985,0.000428,120]
[405306302,1770972653894,-659.06,0.00042849,120]
[405306303,1770972653903,-1500.0,0.00042849,120]
[405306304,1770972653913,-152.28,0.00042876,120]
[405306305,1770972653924,-238.4124,0.00042878,120]
[405306306,1770972653934,-10000.0,0.00042899,2]
[405306307,1770972653944,-150.0,0.000429,60]
[405306308,1770972653954,-305.94,0.000429,60]
[405306309,1770972653963,-150.0,0.000429,27]
[405306310,1770972653973,-253.0,0.000429,41]
[405306311,1770972653982,-400.0,0.000429,15]
[405306312,1770972653991,-99315.94639462,0.000429,120]
[405306313,1770972654001,-266.452,0.0004292,120]
[405306314,1770972654011,-152.0,0.00042956,11]
[405306315,1770972654020,-500.0,0.00042977,60]
[405306316,1770972654030,-151.0,0.00042978,120]
[405306317,1770972654040,-151.0,0.00042978,120]
[405306318,1770972654049,-179.942559,0.00042978,120]
[405306319,1770972654059,-179.942559,0.00042978,120]
[405306320,1770972654068,-179.942559,0.00042978,120]
[405306321,1770972654078,-179.942559,0.00042978,120]
[405306322,1770972654087,-659.06,0.00042986,120]
[405306323,1770972654097,-173.51839928,0.00042998,5]
[405306324,1770972654106,-541.304925,0.00042999,60]
[405306325,1770972654116,-1064.30176467,0.00042999,60]
[405306326,1770972654126,-131370.46078799,0.00043,10]
[405306327,1770972654137,-500.0,0.00043,120]
[405306328,1770972654146,-4607.0,0.00043,120]
[405306329,1770972654156,-151.0,0.00043,30]
[405306330,1770972654166,-999.99999901,0.00043,120]
[405306331,1770972654175,-2026.12558868,0.00043,120]
[405306332,1770972654185,-218.05133884,0.00043,120]
[405306333,1770972654195,-200.0,0.00043,7]
[405306334,1770972654205,-27999.929999,0.00043,30]
[405306335,1770972654214,-4732.65452761,0.00043,120]
[405306336,1770972654224,-50992.64354305,0.00043,30]
[405306337,1770972654234,-169701.80016163,0.00043,10]
[405306338,1770972654244,-160.143999,0.00043,120]
[405306339,1770972654254,-300.0,0.00043,120]
[405306340,1770972654263,-500.0,0.00043,120]
[405306341,1770972654272,-154.0,0.00043,90]
[405306342,1770972654282,-826.39687965,0.00043,2]
[405306343,1770972654292,-826.39687965,0.00043,2]
[405306344,1770972654302,-520.30185575,0.00043,2]
[405306345,1770972654311,-154.0,0.00043014,90]
[405306346,1770972654321,-152.14,0.00043016,120]
[405306347,1770972654333,-485.0,0.00043026,30]
[405306348,1770972654343,-160.0,0.00043068,120]
[405306349,1770972654352,-150.0,0.00043071,120]
[405306350,1770972654363,-152.0,0.00043072,23]
[405306351,1770972654373,-152.14,0.00043116,120]
[405306352,1770972654383,-659.06,0.00043123,120]
[405306353,1770972654392,-500.0,0.00043138,60]
[405306354,1770972654402,-152.14,0.00043216,120]
[405306355,1770972654411,-659.06,0.0004326,120]
[405306356,1770972654420,-150.0,0.00043266,120]
[405306357,1770972654430,-151.0,0.00043282,10]
[405306358,1770972654439,-151.0,0.00043282,10]
[405306359,1770972654448,-151.0,0.00043282,10]
[405306360,1770972654457,-151.0,0.00043282,10]
[405306361,1770972654467,-151.0,0.00043282,10]
[405306362,1770972654477,-151.0,0.00043282,10]
[405306363,1770972654486,-151.0,0.00043282,10]
[405306364,1770972654496,-151.0,0.00043282,10]
[405306365,1770972654505,-151.0,0.00043282,10]
[405306366,1770972654514,-151.0,0.00043282,10]
[405306367,1770972654523,-151.0,0.00043282,10]
[405306368,1770972654532,-229.0,0.00043282,10]
[405306369,1770972654542,-500.0,0.00043287,120]
[405306370,1770972654551,-500.0,0.00043287,120]
[405306371,1770972654560,-469.87429252,0.00043287,120]
[405306372,1770972654570,-500.0,0.00043287,120]
[405306373,1770972654581,-1999.0,0.00043287,120]
[405306374,1770972654591,-7682.707853,0.00043287,2]
[405306375,1770972654600,-839.0,0.00043288,120]
[405306376,1770972654610,-1123.22,0.0004329,3]
[405306377,1770972654620,-2918.485299,0.00043299,7]
[405306378,1770972654630,-1478.62044,0.00043299,7]
[405306379,1770972654640,-2000.0,0.000433,2]
[405306380,1770972654649,-152.14,0.00043316,120]
[405306381,1770972654659,-659.06,0.00043397,120]
[405306382,1770972654668,-151.0,0.000434,120]
[405306383,1770972654678,-152.14,0.00043416,120]
[405306384,1770972654687,-11300.69,0.00043416,4]
[405306385,1770972654700,-200.0,0.0004343,7]
[405306386,1770972654710,-10444.35407722,0.0004344,120]
[405306387,1770972654719,-485.0,0.00043469,30]
[405306388,1770972654728,-150.0,0.00043481,120]
[405306389,1770972654738,-2741.24019052,0.000435,30]
[405306390,1770972654748,-5474.43108185,0.000435,120]
[405306391,1770972654758,-811.9,0.000435,120]
[405306392,1770972654768,-1200.0,0.000435,120]
[405306393,1770972654777,-800.0,0.000435,120]